[Event "***Titled Tuesday 3|2 Blitz"]
[Site "Chess.com"]
[Date "2017.02.07"]
[Round "1"]
[White "chorejason"]
[Black "gammagramma"]
[Result "0-1"]
[WhiteElo "2023"]
[BlackElo "2445"]
[TimeControl "180+2"]
[EndTime "13:02:22 PST"]
[Termination "gammagramma won by resignation"]

1. e4 {[%clk 0:03:02]} 1... Nc6 {[%clk 0:02:59.5]} 2. d4 {[%clk 0:03:02.2]} 2...
d5 {[%clk 0:02:58.2]} 3. Nc3 {[%clk 0:03:03.1]} 3... e5 {[%clk 0:02:57.2]} 4.
dxe5 {[%clk 0:02:59.7]} 4... d4 {[%clk 0:02:58.4]} 5. Nd5 {[%clk 0:02:58.7]}
5... Nge7 {[%clk 0:03:00]} 6. Nxe7 {[%clk 0:02:58.1]} 6... Qxe7 {[%clk
0:03:01.9]} 7. Nf3 {[%clk 0:02:55.7]} 7... Bg4 {[%clk 0:03:00.3]} 8. Bb5 {[%clk
0:02:54.8]} 8... Qb4+ {[%clk 0:02:47.1]} 9. c3 {[%clk 0:02:37.9]} 9... Qxb5
{[%clk 0:02:46.3]} 10. cxd4 {[%clk 0:02:39.4]} 10... O-O-O {[%clk 0:02:46.1]}
11. h3 {[%clk 0:02:35.7]} 11... Bb4+ {[%clk 0:02:31.3]} 12. Bd2 {[%clk
0:02:35.4]} 12... Bxd2+ {[%clk 0:02:30.1]} 13. Qxd2 {[%clk 0:02:36]} 13... Bxf3
{[%clk 0:02:30.7]} 14. gxf3 {[%clk 0:02:36.9]} 14... Nxd4 {[%clk 0:02:32.1]} 0-1

[Event "***Titled Tuesday 3|2 Blitz"]
[Site "Chess.com"]
[Date "2017.02.07"]
[Round "1"]
[White "MyleneFarmer"]
[Black "Zlatan56"]
[Result "0-1"]
[WhiteElo "2358"]
[BlackElo "2649"]
[TimeControl "180+2"]
[EndTime "13:02:24 PST"]
[Termination "Zlatan56 won by resignation"]

1. e4 {[%clk 0:03:02]} 1... g6 {[%clk 0:02:53.9]} 2. d4 {[%clk 0:03:01.2]} 2...
Bg7 {[%clk 0:02:54.9]} 3. Nc3 {[%clk 0:03:02.3]} 3... d6 {[%clk 0:02:56.2]} 4.
Be3 {[%clk 0:03:03.4]} 4... a6 {[%clk 0:02:54.5]} 5. Qd2 {[%clk 0:03:02.9]} 5...
b5 {[%clk 0:02:54.8]} 6. f3 {[%clk 0:03:04.3]} 6... Nd7 {[%clk 0:02:55.4]} 7. h4
{[%clk 0:03:05.7]} 7... h6 {[%clk 0:02:55.1]} 8. Nh3 {[%clk 0:03:05.9]} 8... Bb7
{[%clk 0:02:53.7]} 9. O-O-O {[%clk 0:03:06]} 9... e6 {[%clk 0:02:52.5]} 10. Nf4
{[%clk 0:03:02.8]} 10... Ne7 {[%clk 0:02:48.2]} 11. Kb1 {[%clk 0:03:00.8]} 11...
c5 {[%clk 0:02:41.2]} 12. dxc5 {[%clk 0:03:01]} 12... dxc5 {[%clk 0:02:42.1]}
13. Nxb5 {[%clk 0:02:54.8]} 13... axb5 {[%clk 0:02:38.9]} 14. Bxb5 {[%clk
0:02:56.3]} 14... Bc6 {[%clk 0:02:39.6]} 15. Bc4 {[%clk 0:02:51.6]} 15... Qb6
{[%clk 0:02:35.7]} 16. b3 {[%clk 0:02:51.5]} 16... Rxa2 {[%clk 0:02:31.7]} 0-1

[Event "***Titled Tuesday 3|2 Blitz"]
[Site "Chess.com"]
[Date "2017.02.07"]
[Round "1"]
[White "jb2mix"]
[Black "EltajSafarli"]
[Result "0-1"]
[WhiteElo "2405"]
[BlackElo "2820"]
[TimeControl "180+2"]
[EndTime "13:04:41 PST"]
[Termination "EltajSafarli won by resignation"]

1. d4 {[%clk 0:03:02]} 1... Nf6 {[%clk 0:03:00]} 2. c4 {[%clk 0:03:02.3]} 2...
g6 {[%clk 0:02:59]} 3. Nc3 {[%clk 0:03:02.5]} 3... d5 {[%clk 0:02:58.9]} 4. Nf3
{[%clk 0:03:01.9]} 4... Bg7 {[%clk 0:02:58.9]} 5. h4 {[%clk 0:03:02.6]} 5...
dxc4 {[%clk 0:02:58.8]} 6. e4 {[%clk 0:02:59.7]} 6... c5 {[%clk 0:02:59.1]} 7.
d5 {[%clk 0:03:01]} 7... b5 {[%clk 0:02:59.4]} 8. h5 {[%clk 0:02:46]} 8... Nxh5
{[%clk 0:02:57.7]} 9. Nxb5 {[%clk 0:02:46.4]} 9... Bg4 {[%clk 0:02:59.2]} 10.
Bxc4 {[%clk 0:02:42.4]} 10... Nd7 {[%clk 0:02:58.8]} 11. Rh4 {[%clk 0:02:11.2]}
11... Ne5 {[%clk 0:02:50.3]} 12. Be2 {[%clk 0:02:07.9]} 12... Bxf3 {[%clk
0:02:45.2]} 13. gxf3 {[%clk 0:02:05.5]} 13... c4 {[%clk 0:02:41.8]} 14. Nc3
{[%clk 0:01:29.8]} 14... e6 {[%clk 0:02:33.5]} 15. Rxh5 {[%clk 0:01:29]} 15...
gxh5 {[%clk 0:02:31]} 16. f4 {[%clk 0:01:30.3]} 16... Ng4 {[%clk 0:02:31.9]} 17.
Bxg4 {[%clk 0:01:30.8]} 17... hxg4 {[%clk 0:02:32.1]} 18. Qxg4 {[%clk
0:01:32.5]} 18... Bxc3+ {[%clk 0:02:28.2]} 19. bxc3 {[%clk 0:01:32]} 19... Qf6
{[%clk 0:02:27.9]} 20. Rb1 {[%clk 0:01:13.1]} 20... Qxc3+ {[%clk 0:02:19.8]} 21.
Bd2 {[%clk 0:01:13.2]} 21... Qd3 {[%clk 0:02:20.6]} 22. Rc1 {[%clk 0:01:06.7]}
22... Qxe4+ {[%clk 0:02:20]} 0-1

[Event "***Titled Tuesday 3|2 Blitz"]
[Site "Chess.com"]
[Date "2017.02.07"]
[Round "1"]
[White "BillieKimbah"]
[Black "coalescenet"]
[Result "1-0"]
[WhiteElo "2597"]
[BlackElo "2310"]
[TimeControl "180+2"]
[EndTime "13:04:41 PST"]
[Termination "BillieKimbah won by resignation"]

1. Nf3 {[%clk 0:02:59.6]} 1... d5 {[%clk 0:02:56.6]} 2. g3 {[%clk 0:03:00.2]}
2... Nf6 {[%clk 0:02:57.9]} 3. Bg2 {[%clk 0:03:00.7]} 3... e6 {[%clk 0:02:59.4]}
4. O-O {[%clk 0:03:00.9]} 4... Be7 {[%clk 0:03:00.9]} 5. c4 {[%clk 0:03:01.9]}
5... O-O {[%clk 0:03:01.8]} 6. d4 {[%clk 0:03:03]} 6... dxc4 {[%clk 0:03:03.2]}
7. Qc2 {[%clk 0:03:02.8]} 7... a6 {[%clk 0:03:04.6]} 8. a4 {[%clk 0:03:03]} 8...
Ra7 {[%clk 0:03:05]} 9. Rd1 {[%clk 0:02:54]} 9... b6 {[%clk 0:03:02.4]} 10. Ne5
{[%clk 0:02:47.7]} 10... Bb7 {[%clk 0:02:59]} 11. Bxb7 {[%clk 0:02:48.3]} 11...
Rxb7 {[%clk 0:03:00.4]} 12. Qxc4 {[%clk 0:02:49.9]} 12... c5 {[%clk 0:02:35.4]}
13. Nc3 {[%clk 0:02:49.5]} 13... cxd4 {[%clk 0:02:31.5]} 14. Rxd4 {[%clk
0:02:50.1]} 14... Qc7 {[%clk 0:02:33]} 15. Bf4 {[%clk 0:02:19.7]} 15... Qxc4
{[%clk 0:02:26.2]} 16. Nxc4 {[%clk 0:02:20.5]} 16... Nc6 {[%clk 0:02:23]} 17.
Rdd1 {[%clk 0:02:15.5]} 17... Nb4 {[%clk 0:02:11.1]} 18. Rac1 {[%clk 0:01:56.9]}
18... Rc8 {[%clk 0:02:01.9]} 19. Nd6 {[%clk 0:01:53.3]} 19... Bxd6 {[%clk
0:02:00.4]} 20. Bxd6 {[%clk 0:01:54.9]} 20... Nfd5 {[%clk 0:01:50.6]} 21. Nxd5
{[%clk 0:01:52.1]} 21... Rxc1 {[%clk 0:01:50.7]} 22. Rxc1 {[%clk 0:01:52.8]} 1-0

[Event "***Titled Tuesday 3|2 Blitz"]
[Site "Chess.com"]
[Date "2017.02.07"]
[Round "1"]
[White "Rozum_Ivan"]
[Black "pastouche06"]
[Result "0-1"]
[WhiteElo "2564"]
[BlackElo "2318"]
[TimeControl "180+2"]
[EndTime "13:06:01 PST"]
[Termination "pastouche06 won by checkmate"]

1. e4 {[%clk 0:03:02]} 1... c6 {[%clk 0:02:59.9]} 2. Nc3 {[%clk 0:02:59]} 2...
d5 {[%clk 0:02:59.9]} 3. Nf3 {[%clk 0:02:59.9]} 3... Bg4 {[%clk 0:03:00.7]} 4.
h3 {[%clk 0:03:00.8]} 4... Bxf3 {[%clk 0:03:01.5]} 5. Qxf3 {[%clk 0:03:02.7]}
5... Nf6 {[%clk 0:03:01.8]} 6. d3 {[%clk 0:03:01.1]} 6... e6 {[%clk 0:03:02.7]}
7. a3 {[%clk 0:03:01.1]} 7... Nbd7 {[%clk 0:03:02.2]} 8. g4 {[%clk 0:03:01.8]}
8... h6 {[%clk 0:02:51.1]} 9. Bg2 {[%clk 0:03:02.6]} 9... d4 {[%clk 0:02:37]}
10. Nb1 {[%clk 0:03:01.2]} 10... Bd6 {[%clk 0:02:30.2]} 11. Nd2 {[%clk
0:02:49.8]} 11... Ne5 {[%clk 0:02:23.2]} 12. Qe2 {[%clk 0:02:49.6]} 12... Ng6
{[%clk 0:02:24.3]} 13. Nc4 {[%clk 0:02:50.2]} 13... e5 {[%clk 0:02:00.2]} 14. h4
{[%clk 0:02:46]} 14... Bc7 {[%clk 0:01:42.4]} 15. h5 {[%clk 0:02:35.1]} 15...
Nf8 {[%clk 0:01:43.3]} 16. f4 {[%clk 0:02:33.6]} 16... exf4 {[%clk 0:01:38.1]}
17. e5 {[%clk 0:02:34.8]} 17... Nd5 {[%clk 0:01:39.1]} 18. Nd6+ {[%clk
0:02:29.6]} 18... Bxd6 {[%clk 0:01:39]} 19. exd6+ {[%clk 0:02:31.5]} 19... Ne3
{[%clk 0:01:39.6]} 20. Bxe3 {[%clk 0:02:28.5]} 20... fxe3 {[%clk 0:01:40]} 21.
O-O {[%clk 0:02:17]} 21... Qxd6 {[%clk 0:01:39.8]} 22. b4 {[%clk 0:02:16.3]}
22... Ne6 {[%clk 0:01:37.6]} 23. Rf5 {[%clk 0:02:16.3]} 23... O-O {[%clk
0:01:36.1]} 24. Raf1 {[%clk 0:02:16.8]} 24... f6 {[%clk 0:01:34.6]} 25. c3
{[%clk 0:02:07.7]} 25... Rae8 {[%clk 0:01:33.6]} 26. c4 {[%clk 0:02:07.5]} 26...
Ng5 {[%clk 0:01:28.5]} 27. R5f4 {[%clk 0:02:05.1]} 27... a5 {[%clk 0:01:17.8]}
28. c5 {[%clk 0:02:05.9]} 28... Qc7 {[%clk 0:01:14.8]} 29. Rxd4 {[%clk
0:02:05.4]} 29... axb4 {[%clk 0:01:13.1]} 30. axb4 {[%clk 0:02:07.3]} 30... Qg3
{[%clk 0:01:13.9]} 31. Rf5 {[%clk 0:01:58.1]} 31... Nh3+ {[%clk 0:01:12.2]} 32.
Kf1 {[%clk 0:01:58.8]} 32... Qh2 {[%clk 0:01:04.5]} 33. Bxh3 {[%clk 0:01:51]}
33... Qh1# {[%clk 0:01:04.1]} 0-1

[Event "***Titled Tuesday 3|2 Blitz"]
[Site "Chess.com"]
[Date "2017.02.07"]
[Round "1"]
[White "kiborg1987"]
[Black "Feegus"]
[Result "1-0"]
[WhiteElo "2649"]
[BlackElo "2358"]
[TimeControl "180+2"]
[EndTime "13:06:06 PST"]
[Termination "kiborg1987 won by resignation"]

1. c4 {[%clk 0:03:02]} 1... Nf6 {[%clk 0:02:59.3]} 2. Nc3 {[%clk 0:03:00.3]}
2... g6 {[%clk 0:02:54.3]} 3. g3 {[%clk 0:03:00.9]} 3... Bg7 {[%clk 0:02:50.2]}
4. Bg2 {[%clk 0:03:02.2]} 4... O-O {[%clk 0:02:51.3]} 5. d4 {[%clk 0:03:03.1]}
5... c5 {[%clk 0:02:48.5]} 6. d5 {[%clk 0:03:02.9]} 6... d6 {[%clk 0:02:48.1]}
7. Nh3 {[%clk 0:03:04.3]} 7... a6 {[%clk 0:02:46.2]} 8. a4 {[%clk 0:03:04.6]}
8... Nbd7 {[%clk 0:02:41.9]} 9. O-O {[%clk 0:03:00.4]} 9... Rb8 {[%clk
0:02:34.6]} 10. Bd2 {[%clk 0:02:30.3]} 10... Ne8 {[%clk 0:02:25.1]} 11. Nf4
{[%clk 0:02:18.7]} 11... Nc7 {[%clk 0:02:26]} 12. a5 {[%clk 0:02:18.4]} 12... b5
{[%clk 0:02:26.2]} 13. axb6 {[%clk 0:02:19.6]} 13... Nxb6 {[%clk 0:02:26.8]} 14.
b3 {[%clk 0:02:20.4]} 14... Bd7 {[%clk 0:02:00.8]} 15. Qc2 {[%clk 0:02:15.7]}
15... Rb7 {[%clk 0:02:01.8]} 16. Nd3 {[%clk 0:02:13.9]} 16... Qb8 {[%clk
0:02:00.5]} 17. Ra3 {[%clk 0:02:14.9]} 17... Rc8 {[%clk 0:01:49]} 18. e4 {[%clk
0:02:14.6]} 18... Bg4 {[%clk 0:01:45.4]} 19. f3 {[%clk 0:02:12.1]} 19... Bd4+
{[%clk 0:01:46]} 20. Kh1 {[%clk 0:02:13.6]} 20... Bd7 {[%clk 0:01:46.9]} 21. Re1
{[%clk 0:02:10.8]} 21... Rf8 {[%clk 0:01:30]} 22. Ne2 {[%clk 0:02:02.9]} 22...
Bg7 {[%clk 0:01:30.2]} 23. Bc3 {[%clk 0:02:04.6]} 23... e5 {[%clk 0:01:29.2]}
24. dxe6 {[%clk 0:02:02.5]} 24... Bxe6 {[%clk 0:01:30]} 25. Bxg7 {[%clk
0:02:02.1]} 25... Kxg7 {[%clk 0:01:30.8]} 26. Nc3 {[%clk 0:01:57.3]} 26... Nd7
{[%clk 0:01:23.3]} 27. f4 {[%clk 0:01:56.7]} 27... f6 {[%clk 0:01:20.6]} 28. e5
{[%clk 0:01:28.8]} 28... fxe5 {[%clk 0:01:21.6]} 29. Bxb7 {[%clk 0:01:12.7]}
29... Qxb7+ {[%clk 0:01:22.6]} 30. Qg2 {[%clk 0:01:14.3]} 30... Bf5 {[%clk
0:01:24.5]} 31. Qxb7 {[%clk 0:01:14.5]} 1-0

[Event "***Titled Tuesday 3|2 Blitz"]
[Site "Chess.com"]
[Date "2017.02.07"]
[Round "1"]
[White "Alliswell998"]
[Black "VishnuPrasanna"]
[Result "1-0"]
[WhiteElo "2135"]
[BlackElo "2475"]
[TimeControl "180+2"]
[EndTime "13:06:14 PST"]
[Termination "Alliswell998 won by resignation"]

1. e4 {[%clk 0:02:55.7]} 1... e6 {[%clk 0:02:59.8]} 2. d4 {[%clk 0:02:53.8]}
2... d5 {[%clk 0:03:01.7]} 3. Nc3 {[%clk 0:02:47.8]} 3... Nf6 {[%clk 0:03:02]}
4. Bg5 {[%clk 0:02:49]} 4... dxe4 {[%clk 0:03:01.6]} 5. Nxe4 {[%clk 0:02:49.4]}
5... Be7 {[%clk 0:03:03.1]} 6. Bxf6 {[%clk 0:02:49.9]} 6... Bxf6 {[%clk
0:03:05]} 7. Nf3 {[%clk 0:02:50.5]} 7... O-O {[%clk 0:03:04.9]} 8. Bd3 {[%clk
0:02:51.1]} 8... Nd7 {[%clk 0:03:05.3]} 9. Qe2 {[%clk 0:02:46.4]} 9... Be7
{[%clk 0:03:06.1]} 10. O-O-O {[%clk 0:02:46.6]} 10... c5 {[%clk 0:03:07.2]} 11.
dxc5 {[%clk 0:02:44.2]} 11... Qc7 {[%clk 0:03:07.5]} 12. h4 {[%clk 0:02:37]}
12... Nxc5 {[%clk 0:03:07.8]} 13. Nxc5 {[%clk 0:02:37.2]} 13... Bxc5 {[%clk
0:03:06.6]} 14. Ng5 {[%clk 0:02:35.9]} 14... h6 {[%clk 0:03:06.8]} 15. Ne4
{[%clk 0:02:29.4]} 15... Be7 {[%clk 0:03:07.5]} 16. g4 {[%clk 0:02:30.1]} 16...
e5 {[%clk 0:03:06.9]} 17. Kb1 {[%clk 0:02:29.9]} 17... Be6 {[%clk 0:02:55.1]}
18. g5 {[%clk 0:02:17.8]} 18... Qa5 {[%clk 0:02:55.4]} 19. b3 {[%clk 0:02:02.4]}
19... Ba3 {[%clk 0:02:52.6]} 20. gxh6 {[%clk 0:01:57.8]} 20... f5 {[%clk
0:02:50.6]} 21. Rhg1 {[%clk 0:01:46]} 21... Rf7 {[%clk 0:02:50.1]} 22. hxg7
{[%clk 0:01:24.3]} 22... fxe4 {[%clk 0:02:39.1]} 23. Qh5 {[%clk 0:01:20.2]}
23... Rxg7 {[%clk 0:02:35.3]} 24. Rxg7+ {[%clk 0:01:01.8]} 24... Kxg7 {[%clk
0:02:37.2]} 25. Rg1+ {[%clk 0:01:00.8]} 25... Kf8 {[%clk 0:02:38.1]} 26. Qh6+
{[%clk 0:00:42.7]} 26... Ke7 {[%clk 0:02:37.9]} 27. Rg7+ {[%clk 0:00:43.2]}
27... Kd6 {[%clk 0:02:38.2]} 28. Qe3 {[%clk 0:00:23.5]} 28... Qc3 {[%clk
0:02:34.4]} 29. Rd7+ {[%clk 0:00:18.7]} 29... Kxd7 {[%clk 0:02:34.2]} 30. Bb5+
{[%clk 0:00:19.1]} 30... Qc6 {[%clk 0:02:28.9]} 31. Bxc6+ {[%clk 0:00:20.2]}
31... bxc6 {[%clk 0:02:30.8]} 32. Qxe4 {[%clk 0:00:21.3]} 32... Rf8 {[%clk
0:02:31.1]} 33. Qxe5 {[%clk 0:00:21.3]} 33... Rxf2 {[%clk 0:02:29.9]} 34. Qd4+
{[%clk 0:00:21.8]} 34... Bd6 {[%clk 0:02:29.7]} 35. Qxf2 {[%clk 0:00:23.7]}
35... Bg4 {[%clk 0:02:30.2]} 36. Qf7+ {[%clk 0:00:23.4]} 1-0

[Event "***Titled Tuesday 3|2 Blitz"]
[Site "Chess.com"]
[Date "2017.02.07"]
[Round "1"]
[White "gmwesley_so"]
[Black "Robin-Side"]
[Result "1-0"]
[WhiteElo "2735"]
[BlackElo "2398"]
[TimeControl "180+2"]
[EndTime "13:06:17 PST"]
[Termination "gmwesley_so won by resignation"]

1. e4 {[%clk 0:03:02]} 1... g6 {[%clk 0:03:00.7]} 2. d4 {[%clk 0:03:02.2]} 2...
Bg7 {[%clk 0:03:00.2]} 3. Nc3 {[%clk 0:03:03.5]} 3... e6 {[%clk 0:03:01.3]} 4.
Nf3 {[%clk 0:03:02.4]} 4... Ne7 {[%clk 0:03:02.5]} 5. Bd3 {[%clk 0:02:57.1]}
5... d5 {[%clk 0:03:03.3]} 6. e5 {[%clk 0:02:57.5]} 6... a6 {[%clk 0:02:39.2]}
7. Ne2 {[%clk 0:02:53.7]} 7... c5 {[%clk 0:02:39.4]} 8. c3 {[%clk 0:02:55.6]}
8... Nbc6 {[%clk 0:02:37.9]} 9. O-O {[%clk 0:02:55.1]} 9... O-O {[%clk
0:02:38.5]} 10. Re1 {[%clk 0:02:55.7]} 10... f6 {[%clk 0:02:31.4]} 11. exf6
{[%clk 0:02:56.2]} 11... Bxf6 {[%clk 0:02:33.3]} 12. Bh6 {[%clk 0:02:56.1]}
12... Re8 {[%clk 0:02:32.1]} 13. Nf4 {[%clk 0:02:52.4]} 13... Nf5 {[%clk
0:02:12.2]} 14. Bxf5 {[%clk 0:02:51.6]} 14... gxf5 {[%clk 0:01:54.3]} 15. Ne5
{[%clk 0:02:52]} 15... Nxe5 {[%clk 0:01:09.3]} 16. dxe5 {[%clk 0:02:53.9]} 16...
Bg7 {[%clk 0:01:04.2]} 17. Qh5 {[%clk 0:02:51.7]} 17... Bd7 {[%clk 0:00:57.2]}
18. Bxg7 {[%clk 0:02:50.5]} 18... Kxg7 {[%clk 0:00:59.1]} 19. Re3 {[%clk
0:02:51.6]} 19... Rg8 {[%clk 0:00:36]} 20. Rh3 {[%clk 0:02:52.3]} 20... Qe7
{[%clk 0:00:21.2]} 21. Qxh7+ {[%clk 0:02:51.2]} 21... Kf8 {[%clk 0:00:22.7]} 22.
Ng6+ {[%clk 0:02:52.9]} 22... Rxg6 {[%clk 0:00:23.8]} 23. Qxg6 {[%clk
0:02:54.8]} 23... Qg7 {[%clk 0:00:24.4]} 24. Qh5 {[%clk 0:02:52.8]} 24... Ke7
{[%clk 0:00:23.1]} 25. Qh4+ {[%clk 0:02:51.9]} 25... Kf7 {[%clk 0:00:23.6]} 26.
Rg3 {[%clk 0:02:52.1]} 26... Qh8 {[%clk 0:00:22.7]} 27. Qg5 {[%clk 0:02:49.8]}
27... Rf8 {[%clk 0:00:19.7]} 28. Re1 {[%clk 0:02:46.1]} 28... Rg8 {[%clk
0:00:18.2]} 29. Qxg8+ {[%clk 0:02:46.6]} 29... Qxg8 {[%clk 0:00:20.1]} 30. Rxg8
{[%clk 0:02:48.1]} 30... Kxg8 {[%clk 0:00:22]} 31. b4 {[%clk 0:02:49.7]} 31...
cxb4 {[%clk 0:00:21.2]} 32. cxb4 {[%clk 0:02:51.6]} 32... Bb5 {[%clk 0:00:22.2]}
33. Rc1 {[%clk 0:02:51.8]} 33... Bc4 {[%clk 0:00:23.3]} 34. f4 {[%clk
0:02:53.1]} 34... Kf7 {[%clk 0:00:24.5]} 35. Kf2 {[%clk 0:02:55]} 35... Bxa2
{[%clk 0:00:25.8]} 36. Rc7+ {[%clk 0:02:55.5]} 36... Kg6 {[%clk 0:00:27.4]} 37.
Rxb7 {[%clk 0:02:57.4]} 37... Bc4 {[%clk 0:00:28.6]} 38. Ke3 {[%clk 0:02:57.7]}
38... Kh5 {[%clk 0:00:29.6]} 39. Rg7 {[%clk 0:02:57.3]} 39... Kh6 {[%clk
0:00:30.6]} 40. Rg5 {[%clk 0:02:58.1]} 40... Bb3 {[%clk 0:00:30]} 41. Kd4 {[%clk
0:02:59.3]} 41... Ba2 {[%clk 0:00:30.7]} 42. h3 {[%clk 0:03:00.5]} 42... Bb3
{[%clk 0:00:30.2]} 43. g4 {[%clk 0:03:01.8]} 43... fxg4 {[%clk 0:00:31.3]} 44.
hxg4 {[%clk 0:03:03.7]} 44... Ba2 {[%clk 0:00:32.9]} 45. Rg8 {[%clk 0:03:02.5]}
45... Bb3 {[%clk 0:00:33.3]} 46. Re8 {[%clk 0:03:03.7]} 1-0

[Event "***Titled Tuesday 3|2 Blitz"]
[Site "Chess.com"]
[Date "2017.02.07"]
[Round "1"]
[White "TricksOnly"]
[Black "mrkvoz"]
[Result "1/2-1/2"]
[WhiteElo "2390"]
[BlackElo "2627"]
[TimeControl "180+2"]
[EndTime "13:06:52 PST"]
[Termination "Game drawn by agreement"]

1. e4 {[%clk 0:03:02]} 1... d6 {[%clk 0:03:00.7]} 2. d4 {[%clk 0:02:56.5]} 2...
Nf6 {[%clk 0:03:02]} 3. Nc3 {[%clk 0:02:57]} 3... e5 {[%clk 0:03:03.6]} 4. dxe5
{[%clk 0:02:51.5]} 4... dxe5 {[%clk 0:03:05.5]} 5. Qxd8+ {[%clk 0:02:49.9]} 5...
Kxd8 {[%clk 0:03:07.4]} 6. Bc4 {[%clk 0:02:50.7]} 6... Ke8 {[%clk 0:03:07.7]} 7.
f4 {[%clk 0:02:51.5]} 7... Nbd7 {[%clk 0:03:07.4]} 8. Nf3 {[%clk 0:02:47.7]}
8... Bd6 {[%clk 0:03:08.4]} 9. O-O {[%clk 0:02:04.9]} 9... c6 {[%clk 0:03:07.8]}
10. fxe5 {[%clk 0:01:51]} 10... Nxe5 {[%clk 0:03:09.7]} 11. Nxe5 {[%clk
0:01:50.3]} 11... Bxe5 {[%clk 0:03:11.6]} 12. Bf4 {[%clk 0:01:50.5]} 12... Bxf4
{[%clk 0:03:09.6]} 13. Rxf4 {[%clk 0:01:52.4]} 13... Be6 {[%clk 0:03:10.2]} 14.
Bxe6 {[%clk 0:01:50.4]} 14... fxe6 {[%clk 0:03:12.1]} 15. e5 {[%clk 0:01:47.8]}
15... Nd5 {[%clk 0:03:12.5]} 16. Nxd5 {[%clk 0:01:46.5]} 16... cxd5 {[%clk
0:03:08.1]} 17. Raf1 {[%clk 0:01:45.7]} 17... Rd8 {[%clk 0:02:46.7]} 18. Rf7
{[%clk 0:01:43.4]} 18... Rd7 {[%clk 0:02:48.2]} 19. Rxd7 {[%clk 0:01:44.4]}
19... Kxd7 {[%clk 0:02:50.1]} 20. Rf7+ {[%clk 0:01:45.1]} 20... Kc6 {[%clk
0:02:52]} 21. Rxg7 {[%clk 0:01:41.3]} 21... d4 {[%clk 0:02:53.6]} 22. Kf2 {[%clk
0:01:37.5]} 22... a6 {[%clk 0:02:50.5]} 23. Kf3 {[%clk 0:01:30.2]} 23... Kd5
{[%clk 0:02:51.5]} 24. Rxb7 {[%clk 0:01:28.9]} 24... Kxe5 {[%clk 0:02:52.9]} 25.
Ra7 {[%clk 0:01:29]} 25... Rc8 {[%clk 0:02:53.7]} 26. Rxa6 {[%clk 0:01:24.3]}
26... Rxc2 {[%clk 0:02:53.7]} 27. Ra5+ {[%clk 0:01:23.3]} 27... Kd6 {[%clk
0:02:53.9]} 28. Ke4 {[%clk 0:01:22.4]} 28... Rxb2 {[%clk 0:02:54]} 29. Kxd4
{[%clk 0:01:22]} 29... Rxg2 {[%clk 0:02:55]} 30. Ra6+ {[%clk 0:01:22.7]} 30...
Ke7 {[%clk 0:02:55.3]} 31. Ra7+ {[%clk 0:01:22.4]} 31... Kd6 {[%clk 0:02:56.7]}
32. Ra6+ {[%clk 0:01:22.7]} 32... Ke7 {[%clk 0:02:57.3]} 33. Ra7+ {[%clk
0:01:23.1]} 33... Kf6 {[%clk 0:02:58.8]} 34. Rxh7 {[%clk 0:01:21]} 34... Rxa2
{[%clk 0:03:00.3]} 35. Rh6+ {[%clk 0:01:19.8]} 35... Kf5 {[%clk 0:03:01.4]} 36.
Rh5+ {[%clk 0:01:20.3]} 36... Kg6 {[%clk 0:03:01.7]} 37. Rh8 {[%clk 0:01:19.2]}
37... Kg7 {[%clk 0:03:01.7]} 38. Re8 {[%clk 0:01:13.6]} 38... Kf7 {[%clk
0:03:02.5]} 39. Rh8 {[%clk 0:01:14.4]} 39... Kg7 {[%clk 0:03:03.8]} 40. Re8
{[%clk 0:01:14.6]} 40... Kf6 {[%clk 0:03:05.1]} 41. Rf8+ {[%clk 0:01:13.9]}
41... Ke7 {[%clk 0:03:05.8]} 42. Rh8 {[%clk 0:01:14.7]} 42... Kd6 {[%clk
0:03:06.2]} 43. h4 {[%clk 0:01:14.1]} 43... Ra4+ {[%clk 0:03:06.1]} 44. Ke3
{[%clk 0:01:11.5]} 44... Ke5 {[%clk 0:03:08]} 45. h5 {[%clk 0:01:10.8]} 45...
Ra3+ {[%clk 0:03:08.3]} 46. Kf2 {[%clk 0:01:09.7]} 46... Rh3 {[%clk 0:03:09.7]}
47. Kg2 {[%clk 0:01:10.1]} 47... Rh4 {[%clk 0:03:10.7]} 48. Kg3 {[%clk
0:01:11.1]} 48... Rh1 {[%clk 0:03:11.8]} 49. Kg2 {[%clk 0:01:12.2]} 49... Rb1
{[%clk 0:03:09.7]} 50. h6 {[%clk 0:01:12.6]} 50... Kf6 {[%clk 0:03:10.5]} 51.
Re8 {[%clk 0:01:08.5]} 51... Rb7 {[%clk 0:03:09.6]} 52. Rh8 {[%clk 0:01:04.3]}
52... Kg6 {[%clk 0:03:00.6]} 53. Kf3 {[%clk 0:01:03.4]} 53... Rb4 {[%clk
0:02:53.3]} 54. Re8 {[%clk 0:00:57.3]} 54... Kxh6 {[%clk 0:02:51.1]} 55. Rxe6+
{[%clk 0:00:58]} 1/2-1/2

[Event "***Titled Tuesday 3|2 Blitz"]
[Site "Chess.com"]
[Date "2017.02.07"]
[Round "1"]
[White "Rikikits"]
[Black "RamonManon0g"]
[Result "1-0"]
[WhiteElo "2623"]
[BlackElo "2329"]
[TimeControl "180+2"]
[EndTime "13:06:57 PST"]
[Termination "Rikikits won by checkmate"]

1. e4 {[%clk 0:03:02]} 1... c5 {[%clk 0:02:59.7]} 2. Nf3 {[%clk 0:03:00]} 2...
d6 {[%clk 0:03:00.3]} 3. d4 {[%clk 0:02:59.8]} 3... cxd4 {[%clk 0:03:02.2]} 4.
Nxd4 {[%clk 0:03:01.7]} 4... Nf6 {[%clk 0:03:03.4]} 5. Nc3 {[%clk 0:03:02.3]}
5... a6 {[%clk 0:03:04.9]} 6. Be2 {[%clk 0:03:03.2]} 6... e5 {[%clk 0:03:06]} 7.
Nb3 {[%clk 0:03:03.9]} 7... Be7 {[%clk 0:03:07.5]} 8. g4 {[%clk 0:03:04.7]} 8...
h6 {[%clk 0:03:08]} 9. Rg1 {[%clk 0:03:02]} 9... Be6 {[%clk 0:03:00.9]} 10. h4
{[%clk 0:03:01.8]} 10... g6 {[%clk 0:02:58.3]} 11. g5 {[%clk 0:03:01.6]} 11...
hxg5 {[%clk 0:02:58.8]} 12. Bxg5 {[%clk 0:03:02.3]} 12... Nfd7 {[%clk
0:02:56.2]} 13. Nd5 {[%clk 0:03:00.5]} 13... Bxg5 {[%clk 0:02:43.5]} 14. hxg5
{[%clk 0:03:02.4]} 14... Bxd5 {[%clk 0:01:43.7]} 15. Qxd5 {[%clk 0:03:02.8]}
15... Qc7 {[%clk 0:01:45]} 16. O-O-O {[%clk 0:03:00.4]} 16... Ke7 {[%clk
0:01:45.7]} 17. Bg4 {[%clk 0:02:55]} 17... Nb6 {[%clk 0:01:46]} 18. Qd3 {[%clk
0:02:55]} 18... N8d7 {[%clk 0:01:42.6]} 19. Kb1 {[%clk 0:02:53.3]} 19... Rac8
{[%clk 0:01:38]} 20. c3 {[%clk 0:02:53.7]} 20... Rh2 {[%clk 0:00:57.2]} 21. Qg3
{[%clk 0:02:47.6]} 21... Rch8 {[%clk 0:00:57.1]} 22. Rd3 {[%clk 0:02:45.5]}
22... Qc6 {[%clk 0:00:55.3]} 23. Bf3 {[%clk 0:02:41.3]} 23... Nc5 {[%clk
0:00:54.3]} 24. Nxc5 {[%clk 0:02:39.4]} 24... Qxc5 {[%clk 0:00:56.2]} 25. Bg2
{[%clk 0:02:33.7]} 25... Nc4 {[%clk 0:00:51]} 26. Rgd1 {[%clk 0:02:30.8]} 26...
b5 {[%clk 0:00:40.3]} 27. b3 {[%clk 0:02:29.2]} 27... Na3+ {[%clk 0:00:33.5]}
28. Kb2 {[%clk 0:02:29.2]} 28... b4 {[%clk 0:00:35]} 29. c4 {[%clk 0:02:25.7]}
29... a5 {[%clk 0:00:28.5]} 30. Rd5 {[%clk 0:02:21.1]} 30... Qb6 {[%clk
0:00:12.7]} 31. c5 {[%clk 0:02:11.2]} 31... dxc5 {[%clk 0:00:13.4]} 32. Qxe5+
{[%clk 0:02:09.2]} 32... Qe6 {[%clk 0:00:06.9]} 33. Rd7+ {[%clk 0:02:09.9]}
33... Kf8 {[%clk 0:00:07.9]} 34. Rd8+ {[%clk 0:02:11.8]} 34... Ke7 {[%clk
0:00:09.5]} 35. R1d7# {[%clk 0:02:12.4]} 1-0